bitfinex/quotes_ETHUSD_20260202
["timestamp","ask_amount","ask_price","bid_price","bid_amount"]
[1770017577304,1.53482748,2233.3,2231.6,14.5]
[1770017577596,1.43242748,2233.3,2231.6,14.5]
[1770017577778,1.43242748,2233.3,2231.7,1.78915927]
[1770017577975,13.38427483,2233.2,2231.7,1.78915927]
[1770017578179,13.38427483,2233.2,2231.4,0.94]
[1770017578362,13.38427483,2233.2,2231.5,14.5]
[1770017580486,13.28187483,2233.2,2231.5,14.5]
[1770017580685,13.28297483,2233.1,2231.5,14.5]
[1770017581204,13.38427483,2233.0,2231.5,14.5]
[1770017581504,1.33853748,2232.9,2231.4,14.69689605]
[1770017581694,0.0011,2233.1,2231.5,13.99046635]
[1770017581873,0.0011,2233.1,2231.5,28.49046635]
[1770017582281,0.0011,2233.1,2231.6,13.75689605]
[1770017582989,0.0011,2233.1,2231.7,14.5]
[1770017583190,0.0011,2233.1,2231.8,13.99046635]
[1770017583370,0.0011,2233.1,2231.9,2.84904663]
[1770017583568,13.28297483,2233.1,2231.4,14.69689605]
[1770017583771,13.28297483,2233.1,2231.5,14.5]
[1770017585903,13.28187483,2232.8,2231.4,0.94]
[1770017586084,13.38427483,2232.6,2230.6,13.75689605]
[1770017586414,13.38427483,2232.6,2230.8,13.75689605]
[1770017587409,1.32818748,2232.7,2231.0,13.75689605]
[1770017587719,0.1024,2233.0,2231.1,13.98727897]
[1770017587905,13.28297483,2233.1,2231.1,13.98727897]
[1770017588080,0.0011,2233.1,2231.3,13.98727897]
[1770017589016,0.0011,2233.1,2231.5,13.98727897]
[1770017589324,0.0011,2233.1,2231.7,13.98727897]
[1770017589607,0.0011,2233.1,2231.9,13.75370867]
[1770017589828,0.0011,2233.1,2231.8,1.4927279]
[1770017590025,0.0011,2233.1,2231.9,14.5]
[1770017593239,12.62744933,2233.1,2231.5,0.94]
[1770017593401,0.0011,2232.9,2231.5,0.94]
[1770017593718,0.1024,2232.8,2231.5,15.44]
[1770017594028,1.37538493,2232.8,2231.6,1.544]
[1770017594729,13.89933426,2232.8,2231.6,1.544]
[1770017595036,13.89933426,2232.8,2231.5,0.94]
[1770017595598,13.89933426,2232.8,2230.9,14.5]
[1770017595599,12.72874933,2232.7,2230.9,14.5]
[1770017596636,12.72874933,2232.7,2230.2,0.1024]
[1770017596637,13.92949376,2232.5,2230.1,0.001]
[1770017596801,13.92949376,2232.3,2230.1,0.001]
[1770017597133,12.72874933,2232.1,2230.1,1.37657087]
[1770017597300,12.72874933,2231.9,2230.1,1.37657087]
[1770017597799,12.72874933,2231.7,2230.1,0.001]
[1770017598005,1.59861845,2232.2,2230.5,13.75370867]
[1770017598228,15.02899261,2232.7,2230.5,13.75370867]
[1770017598229,12.62634933,2232.7,2230.5,13.75370867]
[1770017598533,12.62634933,2232.4,2230.1,14.69470867]
[1770017598699,12.62634933,2232.4,2230.3,13.75370867]
[1770017599235,12.62634933,2232.2,2230.1,0.941]
[1770017599398,12.62634933,2232.0,2230.1,14.69470867]
[1770017600039,1.35866948,2232.1,2230.1,14.69470867]
[1770017600354,0.58262827,2232.2,2230.3,13.75370867]
[1770017600355,13.2089776,2232.2,2230.3,13.75370867]
[1770017600523,12.62634933,2232.2,2230.3,13.75370867]
[1770017600855,0.94,2232.7,2230.3,13.75370867]
[1770017600856,0.0011,2232.9,2231.2,0.2335703]
[1770017601072,0.0011,2232.9,2231.5,13.75370867]
[1770017601260,0.0011,2232.9,2231.7,13.75370867]
[1770017601435,1.34930938,2233.9,2232.3,13.75370867]
[1770017601751,0.0011,2234.0,2232.5,13.75370867]
[1770017602131,12.62744933,2234.0,2232.4,0.94]
[1770017602324,0.1024,2233.9,2232.4,0.94]
[1770017602727,0.0011,2234.0,2232.4,14.69370867]
[1770017602920,0.0011,2234.0,2232.5,15.22307954]
[1770017603354,0.1035,2234.0,2232.5,1.46937087]
[1770017603653,0.1035,2234.0,2232.4,0.94]
[1770017603654,0.0011,2234.0,2232.4,14.69370867]
[1770017604250,0.0011,2234.0,2232.6,13.75370867]
[1770017604622,0.0011,2234.0,2232.8,13.75370867]
[1770017604827,0.0011,2234.0,2233.0,13.75370867]
[1770017605128,0.0032,2234.3,2233.0,13.75370867]
[1770017605330,0.0032,2234.3,2233.1,1.37537087]
[1770017605549,0.0032,2234.3,2232.8,13.75370867]
[1770017605942,0.0011,2233.8,2232.8,13.75370867]
[1770017608054,0.0011,2233.8,2232.4,14.69370867]
[1770017608435,0.0011,2233.8,2232.7,13.75370867]
[1770017609340,0.0011,2233.8,2232.4,0.94]
[1770017609533,0.0011,2233.8,2232.5,1.46937087]
[1770017610248,12.62634933,2233.5,2231.8,1.3987279]
[1770017610456,12.72874933,2233.4,2231.0,13.75370867]
[1770017610675,12.72874933,2233.2,2231.2,14.69270867]
[1770017611261,0.1024,2233.2,2231.4,13.75370867]
[1770017611469,0.1024,2233.6,2231.8,13.75370867]
[1770017611839,12.72874933,2233.6,2231.8,13.75370867]
[1770017612057,12.72874933,2233.4,2231.9,1.37537087]
[1770017612252,12.72874933,2233.4,2231.4,13.75370867]
[1770017612463,12.72874933,2233.4,2231.6,13.75370867]
[1770017612773,1.27287493,2233.5,2231.6,13.75370867]
[1770017612939,0.0011,2233.8,2231.8,13.75370867]
[1770017613450,12.72874933,2233.7,2231.8,13.75370867]
[1770017614960,12.72874933,2233.7,2231.3,13.75370867]
[1770017615155,12.72874933,2233.5,2231.3,13.75370867]
[1770017615739,12.72874933,2233.5,2231.2,0.939]
[1770017615966,12.72874933,2233.3,2231.2,0.939]
[1770017616168,12.72874933,2233.3,2231.2,14.69270867]
[1770017616569,12.72874933,2233.3,2231.2,0.939]
[1770017617346,0.1024,2232.9,2231.2,14.69270867]
[1770017617857,12.62634933,2233.0,2231.2,14.69270867]
[1770017618176,1.26263493,2232.9,2231.3,1.46927087]
[1770017618782,0.1035,2233.5,2231.4,13.90266056]
[1770017618963,0.1035,2233.5,2231.4,15.02301065]
[1770017619146,0.0011,2233.5,2231.4,15.02301065]
[1770017619343,0.0011,2233.5,2231.4,15.02298344]
[1770017619651,0.0011,2233.5,2232.0,13.66909026]
[1770017619844,0.0011,2233.5,2232.2,13.66909026]
[1770017620567,0.0011,2233.5,2232.4,13.66909026]
[1770017621076,0.0011,2233.5,2232.1,14.60909026]
[1770017622176,0.0011,2233.5,2232.1,0.94]
[1770017622381,0.0011,2233.5,2232.1,14.60909026]
[1770017622587,0.0011,2233.5,2232.4,13.66909026]
[1770017623050,0.0011,2233.8,2232.8,13.66909026]
[1770017625661,13.79852374,2233.8,2232.2,1.46090903]
[1770017625886,13.79852374,2233.8,2232.1,0.94]
[1770017626582,0.1024,2233.7,2232.1,0.94]
[1770017626896,13.89982374,2233.7,2232.1,0.94]
[1770017627199,13.89982374,2233.7,2231.5,1.64922543]
[1770017627488,13.89982374,2233.7,2231.5,14.39618675]
[1770017627777,13.68592318,2233.5,2231.7,12.74696132]
[1770017630391,13.58352318,2233.5,2231.7,12.74696132]
[1770017630688,13.58352318,2233.3,2231.6,1.43961868]
[1770017630885,13.58352318,2233.3,2231.5,0.001]
[1770017631663,13.58352318,2233.2,2231.5,0.001]
[1770017631874,13.58352318,2233.1,2231.5,0.001]
[1770017636294,0.1024,2233.3,2231.5,0.001]
[1770017636295,13.58352318,2232.9,2231.5,0.001]
[1770017636696,0.939,2233.1,2231.5,0.001]
[1770017636697,13.58352318,2232.4,2231.5,0.001]
[1770017636996,13.68592318,2231.9,2230.4,0.001]
[1770017637200,13.68592318,2231.7,2230.4,0.001]
[1770017639198,13.68592318,2231.7,2230.3,0.001]
[1770017640478,13.58352318,2231.5,2230.0,0.001]
[1770017640795,13.58352318,2231.3,2230.0,0.001]
[1770017642900,13.58352318,2231.3,2230.2,0.001]
[1770017643204,1.46249232,2231.6,2230.2,0.001]
[1770017643499,0.1024,2231.7,2230.2,0.001]
[1770017643706,0.939,2231.8,2230.2,12.74796132]
[1770017644004,0.1024,2231.7,2230.2,12.74796132]
[1770017644206,1.36859232,2232.3,2230.2,12.74796132]
[1770017644404,0.94,2232.5,2230.4,12.74696132]
[1770017644578,0.94,2232.5,2230.6,12.74696132]
[1770017644772,13.58352318,2233.0,2230.8,12.74696132]
[1770017645183,0.1024,2232.9,2231.0,12.74696132]
[1770017645401,13.58462318,2233.5,2231.4,12.74696132]
[1770017645610,0.0011,2233.5,2231.7,0.2335703]
[1770017645798,0.0011,2233.5,2232.0,12.74696132]
[1770017646509,0.0011,2233.7,2232.7,12.74696132]
[1770017646712,0.0011,2233.8,2232.7,12.74696132]
[1770017647011,0.0011,2234.0,2232.9,12.74696132]
[1770017647513,0.0011,2234.0,2233.1,12.74696132]
[1770017651210,0.0011,2234.0,2233.2,14.5]
[1770017651731,0.0011,2234.0,2232.8,1.27469613]
[1770017651931,0.0011,2234.0,2232.5,13.1915389]
[1770017652089,0.0011,2234.0,2232.6,27.6915389]
[1770017652604,0.0011,2234.0,2232.7,13.1915389]
[1770017653731,0.0011,2234.0,2232.6,14.5]
[1770017654231,13.00438466,2234.0,2232.3,13.1915389]
[1770017654526,1.30043847,2233.9,2232.4,1.31915389]
[1770017654721,1.30043847,2233.9,2232.5,14.5]
[1770017655389,0.0011,2233.8,2232.5,14.5]
[1770017657093,0.0011,2233.8,2232.5,27.6915389]
[1770017657287,0.0011,2233.8,2232.4,1.31915389]
[1770017657487,13.00438466,2233.8,2232.1,14.1315389]
[1770017658018,13.00438466,2233.8,2232.2,14.5]
[1770017658198,0.1024,2233.7,2232.2,14.5]
[1770017660652,13.00438466,2233.8,2232.2,14.5]
[1770017660653,0.0011,2233.8,2232.3,13.1915389]
[1770017661210,0.0011,2233.8,2232.4,14.5]
[1770017661413,0.0011,2233.8,2232.5,2.76915389]
[1770017661812,0.0011,2233.8,2232.3,13.1915389]
[1770017662140,0.0011,2233.8,2232.4,27.6915389]
[1770017662841,0.0011,2233.8,2232.5,13.1915389]
[1770017665018,13.00328466,2233.7,2232.1,0.94]
[1770017665533,0.0032,2233.4,2232.2,14.5]
[1770017665841,0.0032,2233.4,2232.3,1.544]
[1770017667623,0.0032,2233.4,2232.4,0.001]
[1770017668027,13.00328466,2233.3,2231.6,13.1915389]
[1770017668348,0.1024,2233.0,2232.1,0.001]
[1770017668556,0.1024,2233.0,2231.2,13.1915389]
[1770017668557,13.10568466,2233.0,2231.2,13.1915389]
[1770017668713,13.10568466,2233.0,2231.3,0.001]
[1770017668921,13.10568466,2232.8,2231.0,0.001]
[1770017669223,13.10568466,2232.6,2231.0,0.001]
[1770017669414,14.04468466,2232.6,2231.0,0.001]
[1770017670346,13.00328466,2232.6,2231.0,0.001]
[1770017670918,13.00328466,2232.1,2231.0,0.001]
[1770017671122,1.31056847,2232.0,2231.0,0.001]
[1770017671315,0.1024,2231.9,2231.0,0.001]
[1770017671520,13.10568466,2231.9,2230.8,0.001]
[1770017671956,13.10568466,2231.9,2230.4,0.939]
[1770017672327,13.10568466,2231.9,2230.4,15.439]
[1770017672522,0.1024,2231.7,2230.5,1.5439]
[1770017673339,13.10568466,2231.7,2229.9,0.001]
[1770017674322,13.32472537,2231.7,2229.9,0.001]
[1770017674523,13.10568466,2231.7,2229.9,0.001]
[1770017674824,13.00328466,2231.7,2229.9,0.001]
[1770017675045,1.546891,2231.6,2229.9,0.001]
[1770017675456,1.546891,2231.6,2229.9,14.501]
[1770017676059,1.546891,2231.6,2230.1,13.1915389]
[1770017676359,0.1024,2231.6,2230.1,13.1915389]
[1770017676566,0.1024,2231.7,2230.1,13.1915389]
[1770017677336,0.94,2231.9,2230.2,13.1925389]
[1770017677556,0.1024,2231.8,2230.2,13.1925389]
[1770017678041,0.1024,2231.8,2230.3,14.5]
[1770017678363,0.1024,2231.8,2230.4,15.83505483]
[1770017678576,12.87691774,2232.6,2230.5,13.06580094]
[1770017679065,12.87691774,2232.2,2230.6,14.5]
[1770017680533,0.1024,2232.6,2230.7,13.06580094]
[1770017680867,1.49433177,2232.6,2230.8,15.82238103]
[1770017682141,0.1024,2232.6,2230.8,15.82238103]
[1770017682468,1.31056847,2232.9,2231.2,13.06580094]
[1770017682691,1.31056847,2232.9,2230.8,7.2392487]
[1770017682692,12.97931774,2232.8,2231.3,0.94]
[1770017683366,12.97931774,2232.8,2231.4,14.5]
[1770017683568,12.97931774,2232.8,2231.3,0.94]
[1770017683864,12.97931774,2232.6,2231.3,0.94]
[1770017684470,12.97931774,2232.6,2230.8,2.75658009]
[1770017684866,13.91931774,2232.6,2230.8,2.75658009]
[1770017685042,13.91931774,2232.6,2230.8,17.25658009]
[1770017685772,13.91931774,2232.6,2230.8,2.75658009]
[1770017686070,12.97931774,2232.4,2230.8,17.25658009]
[1770017686274,0.1024,2232.4,2230.9,13.06580094]
[1770017686571,0.1024,2232.5,2230.9,13.06580094]
[1770017687447,13.82979944,2232.5,2230.9,13.06580094]
[1770017687642,1.47697994,2232.4,2230.9,16.09813904]
[1770017687977,13.82979944,2232.3,2230.7,0.001]
[1770017693378,0.0011,2232.1,2230.7,12.88588642]
[1770017697271,0.96571316,2232.0,2230.7,12.88588642]
[1770017697575,0.0011,2232.1,2230.7,12.88588642]
[1770017697779,0.96569636,2232.0,2230.7,12.88588642]
[1770017697976,0.0011,2232.1,2230.8,1.38258864]
[1770017698187,0.96568008,2232.0,2230.8,1.38258864]
[1770017698392,0.1035,2232.1,2230.8,1.38258864]
[1770017698563,0.0011,2232.1,2230.8,14.26747506]
[1770017698760,0.1024,2231.9,2230.9,1.42684751]
[1770017698951,0.0011,2232.1,2230.9,1.42684751]
[1770017699164,0.1024,2231.9,2230.9,1.42684751]
[1770017700391,0.0011,2232.1,2230.9,1.42684751]
[1770017701098,0.1024,2231.9,2230.7,0.001]
[1770017701261,0.9663397,2231.8,2230.7,0.001]
[1770017701705,14.76979944,2231.7,2230.5,0.001]
[1770017701987,14.76979944,2231.7,2229.9,0.001]
[1770017701988,14.92209478,2231.1,2229.9,0.001]
[1770017702285,0.1024,2230.8,2229.6,0.001]
[1770017702488,0.9663397,2230.7,2229.6,0.001]
[1770017702696,0.1024,2230.9,2229.6,12.88588642]
[1770017703254,0.1024,2230.9,2229.6,0.001]
[1770017704294,13.72739944,2230.9,2229.6,0.001]
[1770017704511,0.1024,2231.1,2229.6,0.001]
[1770017704512,16.16738667,2230.8,2229.6,0.001]
[1770017704666,0.96484729,2230.7,2229.6,0.001]
[1770017704986,14.69224673,2230.7,2229.6,0.001]
[1770017705188,13.72739944,2230.7,2229.6,0.001]
[1770017707583,0.1024,2230.6,2229.8,0.001]
[1770017707774,1.72689394,2230.6,2229.6,0.001]
[1770017708086,15.48193889,2230.6,2229.6,0.001]
[1770017708499,15.48193889,2230.6,2229.5,0.001]
[1770017708997,1.72689394,2230.6,2229.5,0.001]
[1770017709302,0.1024,2230.7,2229.5,0.001]
[1770017709485,0.94,2230.8,2229.5,13.54271933]
[1770017710483,13.75504495,2231.1,2229.5,13.54271933]
[1770017711360,13.85744495,2231.0,2229.5,13.54271933]
[1770017711561,13.85744495,2231.0,2229.6,1.35437193]
[1770017712292,13.85744495,2231.0,2229.6,14.89609126]
[1770017712518,0.94,2231.2,2229.6,14.89609126]
[1770017712519,0.1024,2231.1,2229.6,14.89609126]
[1770017712723,13.85744495,2231.1,2229.6,1.35437193]
[1770017712892,13.85744495,2230.9,2229.5,0.001]
[1770017713311,13.85744495,2230.7,2229.4,0.001]
[1770017713516,15.05214029,2230.5,2228.8,0.001]
[1770017713733,0.1024,2229.9,2228.1,13.54171933]
[1770017713914,13.85744495,2229.5,2227.6,13.56825173]
[1770017714304,13.75504495,2229.9,2227.6,13.56825173]
[1770017714506,0.1024,2230.1,2227.7,13.54171933]
[1770017714693,13.85744495,2230.1,2227.9,13.54171933]
[1770017714892,13.85744495,2229.9,2228.1,13.54171933]
[1770017715214,0.1024,2229.5,2228.0,1.35417193]
[1770017715412,0.1024,2229.5,2227.7,13.54171933]
[1770017715719,0.1024,2229.9,2227.7,13.54171933]
[1770017715930,13.85744495,2229.9,2227.7,13.54171933]
[1770017716494,1.60138423,2230.4,2228.4,0.1024]
[1770017716696,14.12579976,2231.1,2228.9,13.54171933]
[1770017716933,0.37075481,2231.1,2229.1,13.54171933]
[1770017717898,0.37075481,2231.1,2229.1,14.66322703]
[1770017718106,0.37075481,2231.1,2229.7,13.54171933]
[1770017718305,0.37075481,2231.1,2229.9,13.54171933]
[1770017719023,0.1024,2231.9,2229.9,13.54171933]
[1770017719831,0.39921706,2232.0,2229.9,13.54171933]
[1770017720138,0.39921706,2232.0,2230.1,13.54171933]
[1770017720548,0.39921706,2232.0,2230.3,13.54171933]
[1770017720699,0.39921706,2232.0,2230.5,13.54171933]
[1770017720900,0.39921706,2232.0,2230.4,1.37752896]
[1770017720901,0.39921706,2232.0,2230.8,13.54171933]
[1770017721124,0.0011,2232.1,2230.8,13.54171933]
[1770017721523,0.0011,2231.6,2230.8,13.54171933]
[1770017722502,13.75504495,2233.5,2231.3,13.54171933]
[1770017722721,14.36504495,2233.5,2231.3,13.54171933]
[1770017723005,0.1035,2233.2,2231.3,13.54171933]
[1770017724533,13.85854495,2233.2,2230.9,14.91924829]
[1770017724702,13.75504495,2232.6,2230.6,0.941]
[1770017724900,13.85744495,2232.4,2230.4,1.37752896]
[1770017725127,13.85744495,2232.4,2230.1,13.54171933]
[1770017725128,13.75504495,2232.1,2230.1,13.54171933]
[1770017725430,13.75504495,2231.7,2229.7,0.94]
[1770017725806,0.1024,2231.6,2229.7,0.94]
[1770017726008,15.24318945,2231.6,2229.7,0.94]
[1770017726400,1.4881445,2231.6,2230.0,14.14201755]
[1770017726599,0.1024,2231.6,2230.0,14.14201755]
[1770017727002,0.1024,2232.0,2230.0,14.14201755]
[1770017727202,13.75504495,2232.1,2230.0,14.14201755]
[1770017727923,1.0424,2232.4,2230.0,14.14201755]
[1770017727924,0.1024,2232.3,2230.0,14.14201755]
[1770017728701,13.85744495,2232.3,2230.0,14.14201755]
[1770017729037,13.85744495,2232.1,2230.1,1.41420176]
[1770017730409,13.85744495,2232.1,2230.1,14.95592109]
[1770017730613,0.1024,2231.9,2230.1,14.95592109]
[1770017731669,1.0424,2232.4,2230.1,14.95592109]
[1770017732170,13.75504495,2232.9,2230.5,13.54171933]
[1770017732375,1.3755045,2232.8,2230.7,13.54171933]
[1770017732737,1.3755045,2232.8,2230.9,13.54171933]
[1770017732981,0.94,2233.0,2230.9,13.54171933]
[1770017733284,0.0011,2232.1,2230.9,13.54171933]
[1770017734532,0.0011,2232.1,2230.9,14.66234028]
[1770017734870,0.0011,2232.1,2230.9,13.54171933]
[1770017735359,0.0011,2232.3,2230.9,13.54171933]
[1770017735562,0.0011,2232.3,2231.1,13.54171933]
[1770017735731,0.1035,2233.2,2231.1,13.77528963]
[1770017736862,0.1035,2233.2,2231.0,2.49809477]
[1770017736863,13.85854495,2233.2,2231.0,1.37752896]
[1770017737077,13.85744495,2232.2,2230.3,0.001]
[1770017737246,1.40910153,2232.1,2230.3,13.54271933]
[1770017737584,0.1024,2232.6,2230.7,13.54171933]
[1770017737872,13.55573845,2232.6,2230.7,13.54171933]
[1770017738957,13.55573845,2232.6,2230.3,0.001]
[1770017738958,14.12336851,2232.6,2230.3,13.40090473]
[1770017739157,13.55573845,2232.4,2230.4,1.34009047]
[1770017739953,14.12336851,2232.4,2230.4,1.34009047]
[1770017740177,14.12336851,2232.4,2230.3,0.001]
[1770017740178,13.55573845,2232.2,2230.3,0.001]
[1770017740683,0.1024,2232.0,2230.3,0.001]
[1770017741487,0.1024,2232.0,2230.3,13.40090473]
[1770017742278,0.94,2232.1,2230.3,13.40090473]
[1770017743157,14.39333845,2232.1,2230.3,13.40090473]
[1770017743378,1.43933385,2232.0,2230.4,14.7399952]
[1770017743594,0.1024,2232.0,2230.4,14.7399952]
[1770017743797,13.55573845,2232.0,2230.3,0.001]
[1770017744008,14.12336851,2232.0,2230.3,0.001]
[1770017744213,0.2335703,2231.7,2230.0,0.60129822]
[1770017744416,13.45333845,2231.0,2229.2,0.001]
[1770017744583,0.1024,2230.4,2229.2,0.001]
[1770017744783,0.1024,2230.4,2228.0,13.76657907]
[1770017744784,0.1024,2229.9,2228.0,13.76657907]
[1770017745116,0.1024,2230.4,2228.0,13.76657907]
[1770017745117,0.1024,2230.3,2228.0,13.76657907]
[1770017745294,14.9113123,2230.3,2228.2,13.39990473]
[1770017747022,13.55573845,2230.1,2228.2,13.39990473]
[1770017749118,13.3896823,2229.9,2228.1,1.37675791]
[1770017749338,13.3896823,2229.7,2227.9,0.001]
[1770017749629,13.3896823,2229.3,2227.9,0.001]
[1770017749787,0.1024,2229.1,2227.9,0.001]
[1770017750507,0.94,2229.2,2227.9,0.001]
[1770017751289,13.2872823,2229.8,2227.9,13.18426551]
[1770017751491,0.1024,2229.6,2228.0,14.50169206]
[1770017753622,14.2272823,2229.9,2228.0,14.50169206]
[1770017753818,13.2872823,2230.4,2228.0,14.50169206]
[1770017754032,0.1024,2230.2,2228.0,14.50169206]
[1770017754194,0.1024,2230.2,2228.2,13.18326551]
[1770017754396,1.56862562,2230.2,2228.4,13.18326551]
[1770017755336,13.2872823,2230.8,2228.5,0.1024]
[1770017755521,0.941,2231.2,2228.8,13.18326551]
[1770017755831,13.2872823,2231.1,2228.8,13.18326551]
[1770017755998,0.1024,2231.0,2228.8,13.18326551]
[1770017756201,13.2872823,2230.6,2228.8,13.18326551]
[1770017756400,1.32872823,2230.5,2228.9,1.31832655]
[1770017757008,13.3896823,2230.4,2228.9,1.31832655]
[1770017757336,13.3896823,2230.4,2228.5,14.12426551]
[1770017759530,0.0011,2230.2,2228.5,14.12426551]
[1770017761237,0.0011,2230.2,2228.7,13.18326551]
[1770017761834,0.0011,2230.2,2228.9,13.18326551]
[1770017762034,0.0011,2230.4,2229.0,13.18326551]
[1770017762241,13.2872823,2231.6,2229.4,13.18326551]
[1770017762539,0.0011,2232.1,2230.0,13.18326551]
[1770017762728,0.0011,2232.1,2230.2,13.18326551]
[1770017762906,0.0011,2232.1,2230.6,13.18326551]
[1770017763107,0.0011,2232.1,2230.8,13.18326551]
[1770017763336,0.0011,2232.1,2230.9,1.41242655]
[1770017763636,0.0011,2232.1,2230.7,0.941]
[1770017764639,0.0011,2232.1,2230.7,14.12426551]
[1770017764814,0.0011,2232.3,2230.9,14.30388211]
[1770017765020,0.0011,2232.3,2231.1,13.18326551]
[1770017765221,0.0011,2232.3,2231.0,0.2335703]
[1770017765222,0.0011,2233.2,2231.3,13.18326551]
[1770017765535,0.0011,2233.2,2231.9,13.18326551]
[1770017765721,0.0011,2233.2,2232.0,0.941]
[1770017765921,0.0011,2233.2,2232.0,14.12426551]
[1770017767231,0.0011,2233.6,2232.5,13.18326551]
[1770017767411,0.0011,2234.0,2232.7,0.0008]
[1770017767613,0.0011,2234.0,2232.7,13.18406551]
[1770017767821,0.0011,2234.0,2232.8,14.44586578]
[1770017768013,0.0011,2234.0,2232.7,0.0008]
[1770017768323,13.24069247,2233.9,2232.7,0.0008]
[1770017768532,13.24069247,2233.7,2232.0,0.9418]
[1770017768713,0.0011,2234.0,2232.0,14.06925923]
[1770017768920,0.0011,2234.0,2232.2,13.12745923]
[1770017769121,0.0011,2234.0,2232.4,13.12745923]
[1770017769324,0.0011,2234.0,2232.6,13.12745923]
[1770017769632,0.0011,2234.0,2232.8,13.12745923]
[1770017770532,0.0011,2234.2,2233.0,13.12745923]
[1770017770727,0.0011,2234.2,2233.1,14.06745923]
[1770017770939,0.0011,2234.2,2233.1,2.34674592]
[1770017771147,0.0011,2234.2,2233.1,14.06745923]
[1770017771317,0.0011,2234.2,2233.1,0.94]
[1770017771755,0.0011,2234.2,2233.1,14.06425923]
[1770017771970,0.0011,2234.2,2233.2,14.5]
[1770017772128,0.0011,2234.2,2233.2,27.62745923]
[1770017772329,0.0011,2234.2,2233.3,2.85642592]
[1770017772840,0.0011,2234.6,2233.4,13.12745923]
[1770017773046,0.0011,2234.6,2233.6,13.12745923]
[1770017773432,0.0011,2234.6,2233.1,14.06425923]
[1770017773739,0.0011,2234.6,2233.2,13.36102953]
[1770017773965,0.0011,2234.6,2233.3,13.12745923]
[1770017774143,0.0011,2234.7,2233.5,13.36102953]
[1770017774345,0.0011,2234.9,2233.5,13.36102953]
[1770017774769,0.0011,2234.9,2233.8,13.12745923]
[1770017774983,0.23411176,2236.6,2233.6,14.5]
[1770017774984,13.50574907,2235.9,2233.6,14.5]
[1770017775274,0.1024,2235.3,2233.6,14.5]
[1770017775449,14.56476172,2235.3,2233.6,14.5]
[1770017775864,1.32406925,2235.3,2233.7,13.12745923]
[1770017776063,0.3674566,2235.9,2233.9,13.12745923]
[1770017776261,0.3674566,2235.9,2234.1,13.12745923]
[1770017776465,13.24069247,2235.8,2234.0,0.94]
[1770017776877,0.1024,2235.8,2234.0,14.06745923]
[1770017777186,0.3674566,2235.9,2234.2,13.12745923]
[1770017777395,0.3674566,2235.9,2234.6,13.12745923]
[1770017777552,0.3674566,2235.9,2234.7,13.12745923]
[1770017777752,0.3674566,2235.9,2234.8,14.5]
[1770017778056,0.3674566,2235.9,2234.9,0.939]
[1770017778355,13.13829247,2237.3,2234.9,14.06645923]
[1770017778556,13.13829247,2237.1,2235.0,1.40664592]
[1770017778879,0.1024,2236.8,2235.1,13.12745923]
[1770017779486,1.31382925,2237.2,2235.5,13.12745923]
[1770017779689,0.36317663,2237.8,2235.9,13.12745923]
[1770017779857,0.36317663,2237.8,2236.0,14.06645923]
[1770017780680,0.36317663,2237.8,2236.3,13.36102953]
[1770017781093,0.0982,2238.8,2236.6,13.12745923]
[1770017781308,0.0982,2238.8,2236.9,13.12745923]
[1770017781538,0.0982,2238.8,2237.0,15.37920515]
[1770017781539,1.42216925,2238.8,2237.0,15.37920515]
[1770017781710,0.0982,2238.8,2237.0,15.37920515]
[1770017782086,0.0982,2238.8,2237.1,13.36102953]
[1770017782435,0.0982,2238.8,2237.2,14.5]
[1770017782577,13.13829247,2238.7,2237.2,14.5]
[1770017782782,13.13829247,2238.7,2236.4,0.939]
[1770017783022,1.32364925,2238.6,2236.4,14.06645923]
[1770017783195,0.0982,2238.8,2237.1,13.36102953]
[1770017783396,0.0982,2238.8,2237.8,0.2335703]
[1770017783579,0.0982,2238.8,2237.8,14.06645923]
[1770017783921,0.360449,2239.7,2237.8,14.06645923]
[1770017784079,0.1024,2239.6,2238.3,0.0008]
[1770017784282,1.35511415,2239.6,2238.3,0.0008]
[1770017784517,0.310449,2239.7,2238.3,0.0008]
[1770017784888,13.44874147,2239.7,2238.3,0.0008]
[1770017785221,0.0011,2238.7,2238.3,0.0008]
[1770017785427,13.44874147,2239.7,2238.3,0.0008]
[1770017785428,0.310449,2239.7,2238.3,0.0008]
[1770017785786,13.24069247,2239.6,2238.1,14.5]
[1770017786090,13.24069247,2239.4,2237.6,0.0008]
[1770017786615,13.13829247,2239.0,2237.6,0.0008]
[1770017786818,0.1024,2238.4,2236.9,0.0008]
[1770017786988,13.24069247,2238.8,2236.9,0.0008]
[1770017787388,0.1024,2238.8,2236.9,13.12825923]
[1770017787592,13.24069247,2238.8,2237.0,1.31282592]
[1770017787789,13.24069247,2238.8,2236.9,0.0008]
[1770017787992,13.24069247,2238.8,2236.9,13.12825923]
[1770017788210,13.24069247,2238.8,2237.0,14.5]
[1770017788515,13.13829247,2238.8,2237.0,14.5]
[1770017789214,0.938,2239.3,2237.1,13.12745923]
[1770017789215,14.07629247,2239.3,2237.1,13.12745923]
[1770017789410,0.1024,2238.8,2237.0,14.5]
[1770017789609,13.24069247,2238.6,2237.0,14.5]
[1770017789810,13.13829247,2238.4,2236.9,0.0008]
[1770017790020,0.1024,2238.3,2236.9,0.0008]
[1770017790187,13.24069247,2238.3,2236.9,0.0008]
[1770017790386,13.13829247,2238.1,2236.9,0.0008]
[1770017790723,0.1024,2238.0,2236.9,0.0008]
[1770017791090,14.07629247,2238.1,2236.9,0.0008]
[1770017791624,1.32406925,2238.2,2236.9,0.0008]
[1770017791795,0.1024,2238.5,2236.9,0.0008]
[1770017792821,0.1024,2239.0,2236.9,0.0008]
[1770017792993,0.1024,2239.0,2236.9,13.12825923]
[1770017793394,13.24069247,2239.0,2236.9,0.0008]
[1770017794131,13.24069247,2238.8,2236.9,0.0008]
[1770017794329,1.34742628,2238.7,2236.9,0.0008]
[1770017794527,14.48571875,2238.7,2236.9,0.0008]
[1770017794828,0.1024,2238.6,2236.9,0.0008]
[1770017795198,14.48571875,2238.7,2236.9,0.0008]
[1770017795419,1.34742628,2238.7,2236.9,13.12825923]
[1770017795729,1.34742628,2238.7,2236.9,0.0008]
[1770017795730,13.24069247,2238.6,2236.9,0.0008]